Cogmind - Beta 13 @@@ ROGUE MODE // 2024.05.10 @ 20:52:31 Player: GayPredator Result: Self-destructed Performance ------------- Evolutions (1) 500 Regions Visited (2) 400 Robots Destroyed (19) 95 Value Destroyed (359) 359 Prototype IDs (4) 80 Alien Tech Used (0) 0 Bonus (0) 0 TOTAL SCORE: 1434 Bonus ------- None Cogmind --------- Core Integrity 290/400 Matter 171/300 Energy 88/100 System Corruption 5% Temperature Cool (18) Movement Treading (160) Location -9/Materials Parts ------- > --- POWER (1) -------- (None) > --- PROPULSION (2) --- Light Treads Light Treads > --- UTILITY (4) ------ Small Storage Unit > --- WEAPON (2) ------- Beam Rifle Grenade Launcher > --- INVENTORY (8) ---- Light Ion Engine Wheel Compact Wheel High-capacity Storage Unit Grenade Launcher Mining Laser Plasma Cutter Peak State ------------ > --- POWER ------------ Ion Engine > --- PROPULSION ------- Light Treads Light Treads > --- UTILITY ---------- Heat Sink Small Storage Unit > --- WEAPON ----------- Beam Rifle Beam Rifle > --- INVENTORY -------- Light Ion Engine Wheel Compact Wheel High-capacity Storage Unit Grenade Launcher Mining Laser Plasma Cutter [Rating: 9] Favorites ----------- Power Ion Engine Engine Ion Engine Propulsion Light Treads Treads Light Treads Utility Small Storage Unit Device Heat Sink Storage Small Storage Unit Weapon Assault Rifle Energy Gun Medium Laser Ballistic Gun Assault Rifle Launcher Grenade Launcher Special Weapon Mining Laser Build | -11 -10 -9 ------- Run | Yrd Mat Mat Slots Evolved 2 | . . 2 Power . | . . . Propulsion . | . . . Utility 2 | . . 2 Weapon . | . . . Parts Attached 16 | 6 3 7 Power 1 | 1 . . Engine 1 | 1 . . Core . | . . . Reactor . | . . . Propulsion 3 | 2 1 . Treads 3 | 2 1 . Leg . | . . . Wheel . | . . . Hover . | . . . Flight . | . . . Utility 2 | 1 . 1 Device 1 | . . 1 Storage 1 | 1 . . Processor . | . . . Hackware . | . . . Protection . | . . . Artifact . | . . . Weapon 10 | 2 2 6 Energy Gun 5 | 1 1 3 Energy Cannon . | . . . Ballistic Gun 1 | 1 . . Ballistic Cannon . | . . . Launcher 2 | . . 2 Special Weapon 2 | . 1 1 Impact Weapon . | . . . Slashing Weapon . | . . . Piercing Weapon . | . . . Special Melee Weapon . | . . . Unidentified Prototypes . | . . . Parts Lost 3 | . . 3 Power 1 | . . 1 Propulsion . | . . . Utility 1 | . . 1 Weapon 1 | . . 1 Highest Loss Streak 3 | . . 3 To Critical Strikes . | . . . Average Slot Usage (%) 81 | . 85 71 Engine 13 | . 14 10 Treads 26 | . 28 22 Device 1 | . . 6 Storage 13 | . 14 11 Energy Gun 12 | . 13 10 Ballistic Gun 11 | . 14 2 Launcher 1 | . . 4 Special Weapon 1 | . . 3 Naked Turns . | . . . Heaviest Build 17 | 14 14 17 Greatest Support 40 | 40 40 40 Greatest Overweight (x) . | . . . Average Overweight (x) . | . . . Largest Inventory Capacity 8 | 8 8 8 Average Capacity 7 | 7 8 8 Most Carried 8 | 3 8 8 Average Carried 5 | 1 5 7 Final Capacity 8 | 8 8 8 Final Carried 8 | 3 8 7 Class Distribution -------------------- 100% | Mutant Dominant Class ---------------- Mutant | -10/Materials Mutant | -9/Materials Resources | -11 -10 -9 ----------- Run | Yrd Mat Mat Matter Collected 372 | 211 135 26 Remotely . | . . . Salvage Created 457 | . 277 180 Parts 27 | . 19 8 Haulers Intercepted 1 | . 1 . Recyclers Shooed 2 | . 1 1 Parts Field Recycled . | . . . Retrieved Matter . | . . . Parts Self-Destructed . | . . . Prevented . | . . . Kills | -11 -10 -9 ------- Run | Yrd Mat Mat Combat Hostiles Destroyed 15 | . 10 5 Guns 11 | . 10 1 AOE 3 | . . 3 Classes Destroyed 6 | . 4 2 Builder 2 | . 1 1 Hauler 1 | . 1 . Recycler 1 | . . 1 Swarmer 8 | . 8 . Grunt 6 | . 2 4 Duelist 1 | . . 1 Best Kill Streak 4 | . 4 4 Combat Bots Only 3 | . 3 3 Max Kills in Single Turn 2 | . 2 2 Gunslinging 1 | . 1 . Exploded 1 | . . 1 Melee . | . . . Uniques/NPCs Destroyed . | . . . Combat | -11 -10 -9 -------- Run | Yrd Mat Mat Hostile Shots Fired 68 | . 44 24 Missed 22 | . 11 11 Damage Taken 714 | . 312 402 Core 180 | . 70 110 Absorbed by Shields . | . . . Core Remaining (%) 86 | 100 72 . Volleys Fired 62 | . 33 29 Largest 2 | . 2 2 Hottest 100 | . 100 100 Shots Fired 98 | . 65 33 Gun 77 | . 64 13 Cannon . | . . . Launcher 6 | . . 6 Special 15 | . 1 14 Kinetic 32 | . 32 . Thermal 60 | . 33 27 Explosive 6 | . . 6 Electromagnetic . | . . . Robot Hit Streak 13 | . 7 13 Robot Miss Streak 5 | . 5 1 Penetration Max . | . . . Secondary Targets 2 | . 2 . Max Gunslinging Chain 1 | . 1 . Shots Hit Robots 48 | . 33 15 Core Hits 29 | . 18 11 Critical Kills . | . . . Critical Parts Destroyed . | . . . Critical Strikes 6 | . 4 2 Burn 6 | . 4 2 Melee Attacks . | . . . Impact . | . . . Slashing . | . . . Piercing . | . . . Sneak Attacks . | . . . Combat Hostiles . | . . . Follow-up Attacks . | . . . Damage Inflicted 998 | . 465 533 Guns 624 | . 465 159 Cannons . | . . . Explosions 374 | . . 374 Melee . | . . . Ramming . | . . . Kinetic 226 | . 226 . Thermal 398 | . 239 159 Explosive 374 | . . 374 Electromagnetic . | . . . Impact . | . . . Slashing . | . . . Piercing . | . . . Highest Corruption 5 | . . 5 Average Corruption 5 | . . 5 Corruption Purged . | . . . Corruption Blocked . | . . . Overload Shots . | . . . Overflow Damage 16 | . . 16 Projectiles . | . . . Explosions 16 | . . 16 Melee . | . . . Knockbacks . | . . . Impact . | . . . Kinetic . | . . . Secondary . | . . . Self-Inflicted Damage 20 | . . 20 Shots 1 | . . 1 Rammed . | . . . Targets Rammed . | . . . Kicked . | . . . Crushed . | . . . Highest Temperature 81 | . 81 20 Average Temperature 27 | . 31 9 Received Heat Transfer 162 | . 84 78 Siege Activations . | . . . Robots Corrupted . | . . . Combat Hostiles . | . . . Parts Fried . | . . . Impact Corruptions . | . . . Robots Melted 1 | . . 1 Combat Hostiles 1 | . . 1 Parts Melted 7 | . 6 1 Heat Transferred 1554 | . 999 555 Parts Sabotaged . | . . . Parts Stolen . | . . . Parts Stripped . | . . . Power Chain Reactions . | . . . Alert | -11 -10 -9 ------- Run | Yrd Mat Mat Peak Influence 172 | . 172 146 Initial . | . . . Average 46 | . 44 66 Maximum Alert Level . | . . . Low Security (%) 100 | 100 100 100 Level 1 . | . . . Level 2 . | . . . Level 3 . | . . . Level 4 . | . . . Level 5 . | . . . High Security . | . . . Max Security . | . . . Squads Dispatched 6 | . 3 3 Investigation 2 | . . 2 Extermination . | . . . Reinforcement 4 | . 3 1 Assault . | . . . Garrison . | . . . Intercept . | . . . Searches Triggered . | . . . Construction Impeded 1 | . . 1 Haulers Reinforced . | . . . Active Scanning Responses . | . . . Cargo Convoy Interrupts . | . . . Stealth | -11 -10 -9 --------- Run | Yrd Mat Mat Distress Signals 2 | . 2 . Communications Jammed . | . . . Distress Signals . | . . . Times Spotted 22 | . 17 5 Peak Tracking Total 4 | . 4 3 Tactical Retreats 2 | . 2 . Traps | -11 -10 -9 ------- Run | Yrd Mat Mat Traps Triggered . | . . . Indirectly . | . . . Trap Hack Attempts . | . . . Triggered . | . . . Disarmed . | . . . Reprogrammed 3 | . 3 . Reused . | . . . Traps Extracted . | . . . Installed . | . . . Triggered . | . . . Machines | -11 -10 -9 ---------- Run | Yrd Mat Mat Machines Disabled 1 | . . 1 Max in Single Turn 1 | . . 1 Machines Repaired . | . . . Machines Dismantled . | . . . Machines Sabotaged . | . . . Overloaded Fab Kills . | . . . Hacking | -11 -10 -9 --------- Run | Yrd Mat Mat Machines Accessed 8 | . 6 2 Terminals 7 | . 6 1 Fabricators . | . . . Repair Stations . | . . . Recycling Units . | . . . Scanalyzers 1 | . . 1 Garrison Access . | . . . Total Hacks 29 | . 15 14 Successful 20 | . 8 12 Failed 9 | . 7 2 Catastrophic 3 | . 2 1 Database Lockouts . | . . . Manual 11 | . 9 2 Terminals 17 | . 15 2 Fabricators . | . . . Repair Stations . | . . . Recycling Units . | . . . Scanalyzers 12 | . . 12 Garrison Access . | . . . Terminal Hacks 5 | . 5 . Part Schematic 1 | . 1 . Prototype ID Bank 2 | . 2 . Locate Traps 1 | . 1 . Reprogram Traps 1 | . 1 . Fabricator Hacks . | . . . Repair Station Hacks . | . . . Recycling Unit Hacks . | . . . Scanalyzer 11 | . . 11 Insert Component 5 | . . 5 Analyze 6 | . . 6 Garrison Access Hacks . | . . . Unauthorized Hacks 4 | . 3 1 Terminals 4 | . 3 1 Assimilate 1 | . 1 . Botnet 3 | . 2 1 Fabricators . | . . . Repair Stations . | . . . Recycling Units . | . . . Scanalyzers . | . . . Garrison Access . | . . . Data Cores Recovered . | . . . Used . | . . . Hacking Detections 8 | . 6 2 Full Trace Events 2 | . . 2 Feedback Events . | . . . Feedback Blocked . | . . . Robot Schematics Acquired . | . . . Robots Built . | . . . Authchips . | . . . Time . | . . . Total Robot Build Rating . | . . . Part Schematics Acquired 6 | . 1 5 Parts Built . | . . . Authchips . | . . . Time . | . . . Total Part Build Rating . | . . . Parts Repaired . | . . . Time . | . . . Parts Recycled . | . . . Recycled Matter . | . . . Retrieved Matter . | . . . Retrieved Components . | . . . Parts Scanalyzed 5 | . . 5 Part Schematics Acquired 5 | . . 5 Parts Damaged . | . . . Bothacking | -11 -10 -9 ------------ Run | Yrd Mat Mat Used RIF Installer . | . . . Robots Hacked . | . . . Non-combat . | . . . Combat . | . . . Robot Hacks Applied . | . . . Relay Couplers Released . | . . . Fabnet Peak Effective % . | . . . Robots Rewired . | . . . Allies Hacked . | . . . Hacks Repelled . | . . . Allies | -11 -10 -9 -------- Run | Yrd Mat Mat Total Allies . | . . . Largest Group . | . . . Highest-Rated Group . | . . . Highest-Rated Ally . | . . . Total Orders . | . . . Ally Attacks . | . . . Total Damage . | . . . Kills . | . . . Allies Corrupted . | . . . Allies Melted . | . . . Intel | -11 -10 -9 ------- Run | Yrd Mat Mat Robot Analysis Total . | . . . Derelict Logs Recovered . | . . . Drone Launches . | . . . Drone Recoveries . | . . . Exploration | -11 -10 -9 ------------- Run | Yrd Mat Mat Turns Passed 1152 | 77 816 259 Spaces Moved 562 | 43 422 97 Core 2 | 2 . . Treads 560 | 41 422 97 Legs . | . . . Wheels . | . . . Hover . | . . . Flight . | . . . Fastest Speed 50 | 50 160 160 Average Speed 159 | 154 160 160 Slowest Speed 160 | 160 160 160 Overloaded Moves . | . . . Propulsion Burnouts . | . . . Robots Hopped . | . . . Cave-ins Triggered 1 | . . 1 Exploration Rate (%) 24 | 4 59 9 Regions Visited 2 Branch Regions . Pre-discovered Areas . | . . . Known Exits Taken . | . . . Unknown Exits Taken 2 | 1 1 . Scrap Searched . | . . . Spaces Dug 15 | . 1 14 Terrain Destroyed 24 | . 1 23 Melee . | . . . Projectile 15 | . 1 14 AOE 9 | . . 9 Terrain Rammed . | . . . Walls Destroyed . | . . . Machines Disabled . | . . . Actions | -11 -10 -9 --------- Run | Yrd Mat Mat Total 684 | 51 495 138 Wait 31 | . 31 . Move 559 | 42 421 96 Hop . | . . . Pick Up 11 | 3 6 2 Fast Attach 8 | 6 . 2 Attach 2 | . . 2 Detach . | . . . Swap 6 | . 3 3 Drop 4 | . 1 3 Fire 62 | . 33 29 Melee . | . . . Ram . | . . . Kick . | . . . Crush . | . . . Escape Stasis 1 | . . 1 Rewire . | . . . Trap . | . . . Miscellaneous . | . . . Route ------- -11/Scrapyard -10/Materials -9/Materials History --------- Turn | Location | Event 12 | -11/Scrapyard | Discovered new exit (range 15) 78 | -11/Scrapyard | Entered Materials 251 | -10/Materials | Discovered new exit (range 8) 307 | -10/Materials | Build established: Mutant 894 | -10/Materials | Entered another Materials area 894 | -9/Materials | Evolved 2 slots: Utility x2 1116 | -9/Materials | Crushed by falling debris 1153 | -9/Materials | Self-destructed Last Messages --------------- >>Scanalyze Scanning: Mining Laser... Schematic downloaded. 01037_ ALERT: Suspicious activity at Scanalyzer M002. Dispatching Investigation squad. 01070_ The unstable cave ceiling collapses. 01116_ Crushed by falling debris. 01116_ Heat Sink destroyed. 01116_ System corrupted by crushing effect (+2). 01116_ Beam Rifle destroyed. 01116_ System corrupted by crushing effect (+3). 01135_ Ion Engine destroyed. 01139_ ALERT: Construction progress impeded, dispatching reinforcements to local area. 01140_ The unstable cave ceiling collapses. 01142_ G-34 Mercenary destroyed. 01142_ Destroyed Terrain Scanner. 01142_ U-05 Engineer destroyed. 01151_ G-34 Mercenary destroyed. 01152_ U-05 Engineer lays Concrete. Map ----- +----------------------------------------------------+ | ?????????????????????????????????? | | ??????????????????????????######## | | ??????????????????????????# # | | ??????????????????????????#"S # | | ??????????????????????#####""" # | | ??????????????????????# # "" # | | ??????????????????????# # # | | ??????????############# # """ # | | ??????????# ! + """ # | | ??????????# ! [ # """ # | | ??????????# ![ # # | | ?????????## # """ # | | ?????????#" ##### """ # | | ?????????#T #???# """ # | | ?????????#" #???# # | | ?????????## #???######## | | ??????????# #?????## #?? | | ??????????# = #?????# ##?? | | ??????????#^ %* #?????###??? | | ??????????# % [ #?????# #??? | | ??????????# % ##?????# #??? | | ??????????# ^ ! ##??????# ##?? | | ??????????# ^ ^ #######?## #?? | | ??????????# u # !!#?## #?? | | ??????????# !!######?? | | ??????????# "Y" =@ ##??? | | ??????????# """ % ==####???? | | ??????????####### % !#??????? | | ????????????????## !% !#??????? | | ?????????????????## ##??????? | | ??????????????????# ###????????? | | ????????????????? ???????????? | | ???????????????? ????????????? | | ?????????????? ?????????????? | | ??????????????##### ?????????????? | | ??????????????????#??????????????? | | ?????????????????????????????????? | | ?????????????????????????????????? | | ?????????????????????????????????? | | ?????????????????????????????????? | | ?????????????????????????????????? | | ?????????????????????????????????? | | ?????????????????????????????????? | | ?????????????????????????????????? | | ?????????????????????????????????? | | ?????????????????????????????????? | | ?????????????????????????????????? | | ?????????????????????????????????? | | ?????????????????????????????????? | | ?????????????????????????????????? | +----------------------------------------------------+ Best States ------------- Heat Dissipation 38 Energy Generation 10 Energy Capacity 250 Matter Stores 300 Matter Capacity 300 Sight Range 16 Terrain Scan Density 10 Evasion (%) 40 Recoil Reduction 2 Item Schematics ----------------- Lrg. Storage Unit | -10/Materials | Hacked Wheel | -9/Materials | Scanalyzed Hcp. Storage Unit | -9/Materials | Scanalyzed Grenade Launcher | -9/Materials | Scanalyzed Plasma Cutter | -9/Materials | Scanalyzed Mining Laser | -9/Materials | Scanalyzed Robot Schematics ------------------ None Fabricated ------------ Nothing Alien Tech Used ----------------- None Achievements -------------- None Challenges ------------ None Game ------ Seed PrecisionOmegaRail Manual? 0 Play Time 00:11:23 Cumulative 95.4 hours Start 2024.05.10 @ 20:32:36 End 2024.05.10 @ 20:52:31 Sessions 1 Manual Loads 0 Difficulty Rogue Special Mode None Game No. 74 Rogue 35 Adventurer 32 Explorer 7 Win Type - Total 0 Types 0/0/0/0/0/0/0/0/0 Lore% 27 Gallery% 59 Achievement% 45 Wizard Run 0 Options --------- Layout 1 ASCII 0 Keyboard 0 Movement Numpad Keybinds 0 Fullscreen 1 Font 16/SmallcapsGlow Map View 50x35 Zoom Use 0% Tactical HUD 1 Map Filters NONE Filters NONE Steam SD RUN: 5c45f309-31c4-4652-9cb3-0e4301234fb2